bitfinex-derivatives/quotes_SOLF0:USTF0_20241226
["timestamp","ask_amount","ask_price","bid_price","bid_amount"]
[1735196856196,4.2105,193.97,193.93,2.5809]
[1735196857097,2.5806,193.96,193.92,2.581]
[1735196857402,1.6301,193.97,193.89,3.26]
[1735196857591,1.5508,193.95,193.89,3.26]
[1735196858303,2.5809,193.93,193.89,5.8413]
[1735196858503,2.5809,193.93,193.89,3.26]
[1735196858803,2.5808,193.94,193.9,2.5812]
[1735196859001,1.5508,193.95,193.89,3.26]
[1735196859402,1.5508,193.95,193.93,2.5809]
[1735196859701,1.5508,193.95,193.89,3.26]
[1735196860098,1.5508,193.95,193.9,2.5812]
[1735196860400,1.5508,193.95,193.92,8.17726207]
[1735196860702,1.5508,193.95,193.93,2.5808]
[1735196861793,1.5508,193.95,193.92,10.75826207]
[1735196862503,1.5508,193.95,193.9,8.17726207]
[1735196864405,4.1315,193.95,193.92,2.581]
[1735196866298,1.5508,193.95,193.92,2.581]
[1735196867301,1.5508,193.95,193.9,8.17726207]
[1735196867502,1.6686,193.96,193.92,8.17726207]
[1735196868103,1.6686,193.96,193.93,2.5808]
[1735196868804,1.6686,193.96,193.94,2.5807]
[1735196870404,1.6301,193.97,193.93,2.5808]
[1735196870609,1.6301,193.97,193.94,8.17726207]
[1735196871316,50.0,194.0,193.96,8.17726207]
[1735196871510,50.0,194.0,193.99,8.17726207]
[1735196872406,50.0,194.0,193.99,10.75736207]
[1735196878217,1.675,194.09,194.06,2.5791]
[1735196878718,1.675,194.09,194.04,8.17726207]
[1735196879018,1.675,194.09,194.05,2.5793]
[1735196880418,4.2538,194.09,194.05,2.5793]
[1735196880912,1.675,194.09,194.05,2.5793]
[1735196881617,1.675,194.09,194.04,8.17726207]
[1735196881813,8.17726207,194.08,194.0,8.17726207]
[1735196882519,2.579,194.08,194.02,8.17726207]
[1735196882723,1.675,194.09,194.02,3.22]
[1735196883018,1.675,194.09,194.04,8.17726207]
[1735196884119,1.675,194.09,194.06,2.5791]
[1735196885015,1.5349,194.11,194.04,8.17726207]
[1735196885213,4.1134,194.11,194.06,2.5792]
[1735196887018,4.1134,194.11,194.07,2.579]
[1735196888018,1.5347,194.16,194.1,8.17726207]
[1735196889016,1.5347,194.16,194.12,8.17726207]
[1735196890622,4.1126,194.16,194.12,10.75566207]
[1735196890823,1.5205,194.18,194.12,8.17726207]
[1735196891022,1.5205,194.18,194.14,10.75526207]
[1735196892022,1.5205,194.18,194.03,1.6511]
[1735196892322,4.0981,194.18,194.13,8.17726207]
[1735196892523,4.0981,194.18,194.13,11.37726207]
[1735196892723,1.5205,194.18,194.14,2.578]
[1735196893123,4.0981,194.18,194.14,2.578]
[1735196894425,2.5766,194.26,194.17,8.17726207]
[1735196894729,1.672,194.28,194.22,8.17726207]
[1735196895526,2.5765,194.27,194.22,10.75426207]
[1735196895727,1.672,194.28,194.24,8.17726207]
[1735196896729,4.2483,194.28,194.24,8.17726207]
[1735196897129,4.2483,194.28,194.23,2.5768]
[1735196897431,4.2483,194.28,194.24,8.17726207]
[1735196899334,1.672,194.28,194.24,10.75396207]
[1735196899533,4.2477,194.3,194.24,8.17726207]
[1735196900135,8.17726207,194.32,194.26,8.17726207]
[1735196900438,2.5759,194.31,194.27,5.7764]
[1735196900729,1.6109,194.33,194.27,3.2]
[1735196901235,2.5758,194.32,194.28,8.17726207]
[1735196901632,1.6109,194.33,194.29,2.5761]
[1735196901833,1.6109,194.33,194.3,8.17726207]
[1735196903336,1.6109,194.33,194.17,53.58]
[1735196903536,2.5759,194.31,194.28,8.17726207]
[1735196903835,1.6109,194.33,194.28,11.37726207]
[1735196904037,1.6109,194.33,194.3,8.17726207]
[1735196905240,2.5753,194.35,194.3,8.17726207]
[1735196905433,2.5753,194.35,194.3,10.75316207]
[1735196905738,3.1487,194.4,194.3,10.75316207]
[1735196905739,2.5752,194.36,194.3,10.75316207]
[1735196906039,2.5752,194.36,194.32,8.17726207]
[1735196906228,8.17726207,194.38,194.17,69.08]
[1735196906433,3.1487,194.4,194.29,8.17726207]
[1735196906635,3.1487,194.4,194.17,69.08]
[1735196906636,8.17726207,194.37,194.17,69.08]
[1735196906838,8.17726207,194.37,194.3,8.17726207]
[1735196907035,3.1487,194.4,194.32,8.17726207]
[1735196907237,3.1487,194.4,194.36,8.17726207]
[1735196909030,1.564,194.4,194.36,8.17726207]
[1735196909229,1.564,194.4,194.37,3.2]
[1735196909833,4.1387,194.4,194.37,3.2]
[1735196911642,2.5747,194.4,194.37,3.2]
[1735196912342,2.5747,194.4,194.38,8.17726207]
[1735196913636,2.5743,194.43,194.38,8.17726207]
[1735196913841,8.17726207,194.45,194.38,8.17726207]
[1735196914244,8.17726207,194.43,194.32,2.5756]
[1735196914547,8.17726207,194.39,194.32,8.17726207]
[1735196914842,2.5752,194.36,194.32,8.17726207]
[1735196915236,2.5752,194.36,194.31,5.7758]
[1735196915237,2.574,194.45,194.34,8.17726207]
[1735196915440,1.6064,194.47,194.41,8.17726207]
[1735196915640,1.5265,194.46,194.41,8.17726207]
[1735196916439,9.84376207,194.48,194.41,8.17726207]
[1735196916440,5.1456,194.55,194.41,8.17726207]
[1735196916641,8.17726207,194.49,194.41,8.17726207]
[1735196916945,2.574,194.46,194.41,8.17726207]
[1735196917146,8.17726207,194.49,194.41,8.17726207]
[1735196917940,2.5741,194.44,194.41,8.17726207]
[1735196918146,2.5741,194.44,194.4,3.2]
[1735196918737,4.8198,194.54,194.4,3.2]
[1735196919050,12.71451815,194.53,194.41,2.5745]
[1735196919447,2.5734,194.5,194.41,2.5745]
[1735196919646,12.71451815,194.53,194.41,2.5745]
[1735196920540,12.71451815,194.53,194.42,2.5744]
[1735196920745,12.71451815,194.53,194.41,12.71451815]
[1735196920943,2.5737,194.48,194.41,12.71451815]
[1735196922449,2.5737,194.48,194.43,2.5742]
[1735196922852,2.5733,194.5,194.43,2.5742]
[1735196923053,12.71451815,194.53,194.43,2.5742]
[1735196923751,2.5733,194.5,194.43,2.5742]
[1735196923951,12.71451815,194.53,194.43,2.5742]
[1735196924152,12.71451815,194.53,194.41,12.71451815]
[1735196924451,2.5735,194.49,194.44,2.5741]
[1735196924855,2.5733,194.51,194.46,2.5739]
[1735196925042,4.8198,194.54,194.46,5.7739]
[1735196925643,2.5732,194.52,194.47,12.71451815]
[1735196925848,2.5732,194.52,194.47,15.28821815]
[1735196926545,2.5732,194.51,194.47,15.28821815]
[1735196926745,4.8198,194.54,194.41,2.5744]
[1735196926946,4.8198,194.54,194.42,3.2]
[1735196928153,2.5739,194.47,194.42,3.2]
[1735196929554,2.5739,194.46,194.42,3.2]
[1735196929743,4.8198,194.54,194.42,3.2]
[1735196931248,12.71451815,194.53,194.33,1.5253]
[1735196931453,12.71451815,194.5,194.37,12.71451815]
[1735196931949,2.5746,194.41,194.37,12.71451815]
[1735196932949,12.71451815,194.5,194.37,12.71451815]
[1735196933155,2.5747,194.4,194.37,12.71451815]
[1735196935354,2.5747,194.4,194.37,15.91451815]
[1735196935955,2.5748,194.39,194.37,15.91451815]
[1735196936357,2.5748,194.39,194.37,12.71451815]
[1735196936558,2.5748,194.39,194.37,15.91451815]
[1735196937255,2.5748,194.39,194.36,3.2]
[1735196940654,2.5746,194.41,194.37,2.575]
[1735196940957,4.8324,194.46,194.37,12.71451815]
[1735196942560,2.5744,194.43,194.39,2.5747]
[1735196944159,1.5722,194.46,194.4,12.71451815]
[1735196945566,1.5722,194.46,194.42,2.5744]
[1735196945763,1.5722,194.46,194.43,3.2]
[1735196946164,4.1461,194.46,194.44,8.1348381]
[1735196946561,2.5739,194.46,194.44,8.1348381]
[1735196946778,2.5737,194.48,194.44,8.1348381]
[1735196947666,2.5737,194.48,194.44,10.7089381]
[1735196947866,2.5738,194.47,194.44,8.1348381]
[1735196950262,2.5735,194.49,194.46,8.1348381]
[1735196951369,2.5737,194.47,194.43,2.5742]
[1735196951560,2.5737,194.47,194.45,8.1348381]
[1735196962879,11.2721381,194.51,194.45,8.1348381]
[1735196963075,2.5739,194.46,194.44,3.22]
[1735196963681,3.1373,194.51,194.44,3.22]
[1735196963881,2.5737,194.47,194.44,3.22]
[1735196965984,2.574,194.46,194.41,2.5744]
[1735196966182,8.1348381,194.47,194.39,8.1348381]
[1735196966382,8.1348381,194.45,194.33,8.87702813]
[1735196966580,8.1348381,194.43,194.36,8.1348381]
[1735196966784,8.1348381,194.43,194.34,11.3548381]
[1735196967180,2.5752,194.36,194.34,11.3548381]
[1735196967383,2.5752,194.36,194.34,8.1348381]
[1735196970787,2.575,194.38,194.34,8.1348381]
[1735196971183,8.1348381,194.43,194.34,8.1348381]
[1735196971682,8.1348381,194.43,194.36,8.1348381]
[1735196972483,8.1348381,194.43,194.33,3.22]
[1735196972687,8.1348381,194.43,194.34,8.1348381]
[1735196973185,2.575,194.38,194.34,8.1348381]
[1735196976988,2.575,194.38,194.34,10.7102381]
[1735196977185,2.5748,194.4,194.36,8.1348381]
[1735196977385,8.1348381,194.43,194.36,8.1348381]
[1735196978291,2.5748,194.39,194.36,8.1348381]
[1735196979492,2.5744,194.42,194.38,8.1348381]
[1735196979689,1.6635,194.46,194.41,8.1348381]
[1735196979892,36.59207299,194.5,194.41,8.1348381]
[1735196979893,28.45723489,194.5,194.43,8.1348381]
[1735196980198,2.5738,194.47,194.43,8.1348381]
[1735196986995,2.5738,194.47,194.42,2.5743]
[1735196986996,2.5734,194.5,194.45,8.1348381]
[1735196987195,12.8893381,194.52,194.45,8.1348381]
[1735196988105,2.5735,194.49,194.45,8.1348381]
[1735196990002,12.8893381,194.52,194.45,8.1348381]
[1735196990204,2.5735,194.49,194.45,8.1348381]
[1735196990398,12.8893381,194.52,194.45,8.1348381]
[1735196990899,2.5736,194.49,194.45,8.1348381]
[1735196992506,2.5734,194.5,194.45,10.7088381]
[1735196992706,4.7545,194.52,194.47,8.1348381]
[1735196993100,2.5736,194.48,194.43,2.5743]
[1735196993300,8.1348381,194.51,194.42,8.1348381]
[1735196993506,8.1348381,194.49,194.42,8.1348381]
[1735196994209,8.1348381,194.47,194.34,7.19392813]
[1735196994510,8.1348381,194.47,194.4,8.1348381]
[1735196994700,2.574,194.45,194.4,8.1348381]
[1735196994903,8.1348381,194.49,194.42,8.1348381]
[1735196995408,2.5739,194.47,194.42,10.7091381]
[1735196996709,2.5739,194.46,194.42,10.7091381]
[1735196998005,2.5739,194.46,194.42,8.1348381]
[1735196998406,2.5744,194.42,194.39,3.2]
[1735196998606,2.5744,194.42,194.39,11.3348381]
[1735197004315,2.5744,194.42,194.38,2.5749]
[1735197004514,8.1348381,194.47,194.38,2.5749]
[1735197004515,2.5745,194.41,194.4,8.1348381]
[1735197004705,8.1348381,194.47,194.31,42.84368563]
[1735197004910,8.1348381,194.45,194.38,8.1348381]
[1735197005110,8.1348381,194.47,194.38,8.1348381]
[1735197005314,8.1348381,194.47,194.38,13.9096381]
[1735197007913,2.5744,194.43,194.38,13.9096381]
[1735197011120,2.5745,194.42,194.38,13.9096381]
[1735197013220,2.5745,194.42,194.4,8.1348381]
[1735197013422,3.16,194.5,194.4,8.1348381]
[1735197013620,2.5741,194.45,194.41,2.5745]
[1735197015325,8.1348381,194.5,194.42,10.7091381]
[1735197015917,2.5738,194.47,194.42,10.7091381]
[1735197017023,8.1348381,194.46,194.39,8.1348381]
[1735197017424,2.5742,194.44,194.39,10.7096381]
[1735197017818,8.1348381,194.46,194.38,3.2]
[1735197018018,2.5745,194.42,194.39,8.1348381]
[1735197019419,2.5743,194.43,194.39,8.1348381]
[1735197019624,2.5743,194.43,194.38,3.2]
[1735197019625,7.11430872,194.5,194.41,8.1348381]
[1735197019925,8.1348381,194.49,194.41,8.1348381]
[1735197020119,2.5739,194.47,194.42,2.5744]
[1735197020315,8.1348381,194.49,194.42,2.5744]
[1735197020720,2.5739,194.47,194.42,2.5744]
[1735197022025,2.5739,194.46,194.41,10.7093381]
[1735197022227,8.1348381,194.47,194.38,11.3348381]
[1735197022628,2.5744,194.43,194.38,13.9097381]
[1735197024223,2.5744,194.42,194.38,13.9097381]
[1735197024828,2.5744,194.42,194.38,10.7097381]
[1735197026527,2.5739,194.46,194.4,8.1348381]
[1735197026827,7.11430872,194.49,194.37,3.16]
[1735197027021,7.11430872,194.49,194.44,8.1348381]
[1735197027217,2.574,194.46,194.42,10.7092381]
[1735197027422,8.1348381,194.48,194.4,8.1348381]
[1735197027828,2.5742,194.44,194.4,10.7094381]
[1735197028126,8.1348381,194.48,194.4,10.7094381]
[1735197029523,2.574,194.45,194.4,10.7094381]
[1735197030018,2.5739,194.46,194.4,8.1348381]
[1735197030223,2.5739,194.46,194.41,2.5744]
[1735197030828,8.1348381,194.48,194.42,8.1348381]
[1735197031028,8.1348381,194.48,194.43,2.5743]
[1735197032526,2.5738,194.47,194.43,2.5743]
[1735197032827,2.5738,194.47,194.42,8.1348381]
[1735197032828,9.7056381,194.5,194.42,8.1348381]
[1735197033026,2.5736,194.48,194.44,10.7089381]
[1735197036133,2.5736,194.48,194.44,8.1348381]
[1735197038234,2.5738,194.47,194.44,8.1348381]
[1735197042930,1.5708,194.5,194.44,8.1348381]
[1735197045434,2.5739,194.46,194.44,8.1348381]
[1735197047833,2.5738,194.47,194.44,8.1348381]
[1735197049245,8.1348381,194.51,194.44,8.1348381]
[1735197049535,2.5739,194.46,194.44,8.1348381]
[1735197049735,8.1348381,194.51,194.44,8.1348381]
[1735197050135,2.5739,194.46,194.44,8.1348381]
[1735197051433,8.1348381,194.47,194.35,1.6615]
[1735197051638,8.1348381,194.47,194.39,8.1348381]
[1735197051836,1.5823,194.46,194.39,8.1348381]
[1735197052543,2.5745,194.42,194.39,8.1348381]
[1735197055937,1.5823,194.46,194.39,8.1348381]
[1735197056138,2.5742,194.44,194.41,8.1348381]
[1735197056338,8.1348381,194.49,194.43,8.1348381]
[1735197056541,2.5741,194.45,194.43,8.1348381]
[1735197058039,2.5739,194.46,194.43,8.1348381]
[1735197060842,2.5739,194.46,194.42,5.7343]
[1735197061039,2.5741,194.45,194.43,8.1348381]
[1735197061244,8.1348381,194.49,194.41,8.1348381]
[1735197062244,2.5741,194.45,194.41,8.1348381]
[1735197062540,2.5741,194.45,194.41,10.7093381]
[1735197062844,2.5741,194.45,194.43,8.1348381]
[1735197064640,15.24914682,194.51,194.43,8.1348381]
[1735197065145,2.5738,194.47,194.43,8.1348381]
[1735197067441,2.5738,194.47,194.43,11.2948381]
[1735197067844,2.5738,194.47,194.43,13.8690381]
[1735197071142,7.11430872,194.53,194.45,8.1348381]
[1735197071347,7.11430872,194.53,194.49,8.1348381]
[1735197071737,2.5732,194.52,194.49,8.1348381]
[1735197074842,3.1772,194.55,194.49,8.1348381]
[1735197075046,2.5729,194.54,194.51,8.1348381]
[1735197075443,55.42141004,194.58,194.51,8.1348381]
[1735197076545,2.5731,194.53,194.51,8.1348381]
[1735197076944,55.42141004,194.58,194.51,8.1348381]
[1735197077940,47.28657194,194.58,194.51,8.1348381]
[1735197079149,2.573,194.53,194.51,8.1348381]
[1735197081047,2.5732,194.52,194.47,2.5737]
[1735197081241,8.1348381,194.53,194.46,11.2548381]
[1735197081752,8.1348381,194.53,194.35,30.43721253]
[1735197082054,8.1348381,194.51,194.43,8.1348381]
[1735197082348,2.5739,194.46,194.43,8.1348381]
[1735197084347,2.5737,194.48,194.45,8.1348381]
[1735197084549,1.5611,194.51,194.47,8.1348381]
[1735197085651,4.1344,194.51,194.47,8.1348381]
[1735197087350,2.5733,194.51,194.47,10.7085381]
[1735197087655,2.5731,194.53,194.49,8.1348381]
[1735197087955,1.5939,194.56,194.51,8.1348381]
[1735197088151,2.573,194.53,194.51,8.1348381]
[1735197088455,2.573,194.53,194.47,3.12]
[1735197088755,2.573,194.53,194.5,8.1348381]
[1735197092761,53.85521004,194.58,194.52,8.1348381]
[1735197092955,45.72037194,194.58,194.52,8.1348381]
[1735197093763,4.9255,194.6,194.52,8.1348381]
[1735197093959,13.0603381,194.6,194.52,8.1348381]
[1735197094163,4.9255,194.6,194.52,10.7078381]
[1735197094351,4.9255,194.6,194.52,8.1348381]
[1735197095060,2.5725,194.57,194.54,8.1348381]
[1735197095664,2.5723,194.59,194.54,10.7076381]
[1735197096867,2.5723,194.58,194.54,8.1348381]
[1735197097066,1.5723,194.6,194.53,3.12]
[1735197097264,1.5723,194.6,194.53,11.2548381]
[1735197098067,2.5725,194.57,194.53,11.2548381]
[1735197099570,1.5723,194.6,194.53,11.2548381]
[1735197099770,2.5723,194.58,194.53,13.8277381]
[1735197100169,1.5723,194.6,194.53,13.8277381]
[1735197100170,2.5725,194.57,194.53,11.2548381]
[1735197100469,2.5725,194.57,194.55,8.1348381]
[1735197107978,1.5723,194.6,194.55,8.1348381]
[1735197108178,3.1929,194.65,194.58,8.1348381]
[1735197108475,4.858,194.65,194.58,8.1348381]
[1735197108978,2.5718,194.62,194.58,8.1348381]
[1735197109875,4.858,194.65,194.58,8.1348381]
[1735197111881,2.5719,194.62,194.58,8.1348381]
[1735197113582,2.5719,194.61,194.58,8.1348381]
[1735197114486,2.5717,194.63,194.6,8.1348381]
[1735197114781,4.858,194.65,194.62,8.1348381]
[1735197114981,7.4294,194.65,194.62,8.1348381]
[1735197115480,2.5718,194.62,194.59,3.12]
[1735197115686,2.5718,194.62,194.61,8.1348381]
[1735197116285,2.5716,194.64,194.61,8.1348381]
[1735197116887,1.6651,194.65,194.59,3.12]
[1735197117088,1.6651,194.65,194.61,8.1348381]
[1735197118586,2.5718,194.62,194.61,8.1348381]
[1735197121188,2.5718,194.62,194.59,3.12]
[1735197121389,2.5718,194.62,194.6,8.1348381]
[1735197122892,2.5715,194.64,194.6,8.1348381]
[1735197123087,8.1348381,194.7,194.62,8.1348381]
[1735197123290,9.6786381,194.7,194.64,8.1348381]
[1735197123496,2.5713,194.66,194.64,8.1348381]
[1735197123791,9.6786381,194.7,194.64,8.1348381]
[1735197124188,2.5712,194.67,194.64,8.1348381]
[1735197126992,2.571,194.68,194.64,8.1348381]
[1735197127188,2.571,194.68,194.66,8.1348381]
[1735197127688,2.5709,194.69,194.66,8.1348381]
[1735197129794,1.5438,194.7,194.66,8.1348381]
[1735197130001,2.571,194.68,194.66,8.1348381]
[1735197130301,1.5438,194.7,194.66,8.1348381]
[1735197130502,2.5709,194.69,194.66,8.1348381]
[1735197131203,2.5709,194.69,194.64,2.5714]
[1735197131396,2.5709,194.69,194.66,8.1348381]
[1735197132200,2.5707,194.7,194.68,8.1348381]
[1735197133592,4.6551,194.78,194.68,8.1348381]
[1735197133796,2.5702,194.74,194.73,8.1348381]
[1735197134802,4.6551,194.78,194.73,8.1348381]
[1735197136397,2.5699,194.76,194.73,8.1348381]
[1735197137702,2.5699,194.76,194.75,8.1348381]
[1735197138504,1.5186,194.78,194.75,8.1348381]
[1735197138702,2.5698,194.77,194.75,8.1348381]
[1735197140311,2.5699,194.76,194.75,8.1348381]
[1735197142823,4.0883,194.78,194.75,8.1348381]
[1735197143015,1.5186,194.78,194.73,3.12]
[1735197143323,2.5704,194.73,194.67,2.5711]
[1735197143520,9.6534381,194.78,194.7,8.1348381]
[1735197144113,2.5704,194.73,194.7,8.1348381]
[1735197144311,8.1348381,194.74,194.63,2.5715]
[1735197144510,8.1348381,194.72,194.66,8.1348381]
[1735197144918,2.5707,194.71,194.66,8.1348381]
[1735197145122,8.1348381,194.74,194.68,8.1348381]
[1735197145321,2.5702,194.74,194.68,8.1348381]
[1735197145520,2.5702,194.74,194.68,10.7058381]
[1735197145722,8.1348381,194.76,194.68,10.7058381]
[1735197147024,2.5702,194.74,194.68,10.7058381]
[1735197147225,8.1348381,194.76,194.66,2.5711]
[1735197147529,8.1348381,194.76,194.69,8.1348381]
[1735197147725,2.5702,194.74,194.69,8.1348381]
[1735197147923,3.2775,194.77,194.71,8.1348381]
[1735197148118,3.2775,194.77,194.7,3.12]
[1735197148119,3.2775,194.77,194.73,8.1348381]
[1735197148325,4.0883,194.78,194.73,8.1348381]
[1735197149527,4.0883,194.78,194.73,10.7051381]
[1735197150521,1.5186,194.78,194.75,8.1348381]
[1735197151825,1.5186,194.78,194.75,10.7048381]
[1735197152224,8.1348381,194.82,194.75,8.1348381]
[1735197152725,8.1348381,194.82,194.76,2.5699]
[1735197153128,8.1348381,194.82,194.75,8.1348381]
[1735197153330,8.1348381,194.82,194.75,10.7048381]
[1735197154029,8.1348381,194.82,194.73,2.5702]
[1735197154226,8.1348381,194.82,194.76,8.1348381]
[1735197154831,8.1348381,194.82,194.7,3.12]
[1735197155031,8.1348381,194.82,194.76,8.1348381]
[1735197155533,3.1248,194.83,194.76,8.1348381]
[1735197155831,3.1248,194.83,194.74,2.5701]
[1735197156028,3.1248,194.83,194.76,8.1348381]
[1735197157929,8.1348381,194.8,194.62,1.6376]
[1735197158231,8.1348381,194.8,194.72,8.1348381]
[1735197158932,8.1348381,194.8,194.74,8.1348381]
[1735197160025,3.1248,194.83,194.76,8.1348381]
[1735197160330,3.1248,194.83,194.69,3.12]
[1735197160331,2.5691,194.83,194.8,8.1348381]
[1735197161429,2.5689,194.84,194.8,8.1348381]
[1735197161729,1.6763,194.85,194.77,3.12]
[1735197161931,1.6763,194.85,194.78,8.1348381]
[1735197162128,1.6763,194.85,194.77,3.12]
[1735197162431,1.6763,194.85,194.78,8.1348381]
[1735197162631,1.6763,194.85,194.8,8.1348381]
[1735197163032,28.45723489,194.92,194.84,8.1348381]
[1735197163231,36.59207299,194.92,194.84,8.1348381]
[1735197163533,2.5685,194.87,194.84,8.1348381]
[1735197163829,8.1348381,194.9,194.84,8.1348381]
[1735197164029,8.1348381,194.9,194.82,3.12]
[1735197164234,8.1348381,194.9,194.82,11.2548381]
[1735197165029,8.1348381,194.88,194.82,8.1348381]
[1735197165434,8.1348381,194.88,194.79,3.12]
[1735197165633,2.5692,194.82,194.79,3.12]
[1735197165830,2.5692,194.82,194.79,11.2548381]
[1735197166031,8.1348381,194.86,194.7,1.514]
[1735197166231,2.5699,194.77,194.74,8.1348381]
[1735197166535,8.1348381,194.82,194.74,8.1348381]
[1735197166835,2.5696,194.78,194.74,8.1348381]
[1735197167032,8.1348381,194.82,194.76,8.1348381]
[1735197167432,8.1348381,194.82,194.71,3.12]
[1735197167735,8.1348381,194.78,194.71,8.1348381]
[1735197168233,2.5699,194.76,194.71,8.1348381]
[1735197168429,8.1348381,194.8,194.73,8.1348381]
[1735197168637,8.1348381,194.82,194.75,8.1348381]
[1735197168844,2.5697,194.78,194.75,8.1348381]
[1735197171740,2.5698,194.77,194.75,8.1348381]
[1735197172436,1.6373,194.84,194.75,8.1348381]
[1735197172739,8.1348381,194.82,194.75,8.1348381]
[1735197173831,1.6373,194.84,194.77,8.1348381]
[1735197174843,8.1348381,194.83,194.77,8.1348381]
[1735197175542,8.1348381,194.83,194.73,3.12]
[1735197175543,8.1348381,194.83,194.75,8.1348381]
[1735197175732,8.1348381,194.81,194.73,11.2548381]
[1735197175936,8.1348381,194.79,194.73,11.2548381]
[1735197176338,2.5701,194.75,194.73,11.2548381]
[1735197177842,8.1348381,194.78,194.69,11.2548381]
[1735197178543,2.5705,194.72,194.69,11.2548381]
[1735197179244,2.5706,194.71,194.69,11.2548381]
[1735197179444,8.1348381,194.76,194.69,11.2548381]
[1735197179840,2.5707,194.71,194.69,11.2548381]
[1735197180340,8.1348381,194.74,194.64,1.5926]
[1735197180535,8.1348381,194.72,194.65,8.1348381]
[1735197181140,2.5712,194.66,194.65,8.1348381]
[1735197183435,1.6283,194.75,194.65,8.1348381]
[1735197183640,8.1348381,194.73,194.65,8.1348381]
[1735197183844,2.5706,194.71,194.65,8.1348381]
[1735197184046,8.1348381,194.73,194.65,8.1348381]
[1735197185541,2.5709,194.69,194.65,8.1348381]
[1735197185746,8.1348381,194.73,194.65,8.1348381]
[1735197186249,2.5708,194.7,194.65,8.1348381]
[1735197186743,8.1348381,194.73,194.65,8.1348381]
[1735197186941,2.571,194.68,194.65,8.1348381]
[1735197188746,8.1348381,194.73,194.65,8.1348381]
[1735197188948,2.5711,194.67,194.65,8.1348381]
[1735197189452,8.1348381,194.73,194.63,3.12]
[1735197189643,8.1348381,194.69,194.61,8.1348381]
[1735197190043,8.1348381,194.67,194.55,2.5727]
[1735197190341,8.1348381,194.67,194.59,8.1348381]
[1735197190549,2.5717,194.63,194.61,8.1348381]
[1735197191749,2.5715,194.64,194.61,8.1348381]
[1735197194244,2.5716,194.63,194.61,8.1348381]
[1735197195450,8.1348381,194.66,194.58,8.1348381]
[1735197196149,8.1348381,194.64,194.54,2.5728]
[1735197196451,8.1348381,194.64,194.57,8.1348381]
[1735197196945,9.7813381,194.64,194.57,8.1348381]
[1735197197545,1.6465,194.64,194.59,8.1348381]
[1735197197747,2.5718,194.62,194.59,8.1348381]
[1735197200751,9.7813381,194.64,194.57,8.1348381]
[1735197200952,8.1348381,194.62,194.55,11.2548381]
[1735197201352,2.5722,194.59,194.55,11.2548381]
[1735197202259,2.5722,194.59,194.55,8.1348381]
[1735197203254,2.5723,194.58,194.55,8.1348381]
[1735197203751,2.5719,194.61,194.57,10.7072381]
[1735197204150,1.6465,194.64,194.57,10.7072381]
[1735197206462,2.5718,194.62,194.57,10.7072381]
[1735197209054,2.5719,194.61,194.57,10.7072381]
[1735197211458,1.6627,194.68,194.59,8.1348381]
[1735197211660,1.6627,194.68,194.61,8.1348381]
[1735197211661,9.7975381,194.68,194.61,8.1348381]
[1735197211961,2.572,194.61,194.59,8.1348381]
[1735197213558,1.597,194.67,194.59,8.1348381]
[1735197213755,2.5716,194.64,194.6,2.572]
[1735197214566,2.5716,194.64,194.61,8.1348381]
[1735197215868,1.6627,194.68,194.63,8.1348381]
[1735197216663,2.5711,194.67,194.63,10.7064381]
[1735197216862,28.45723489,194.73,194.63,8.1348381]
[1735197217062,8.1348381,194.71,194.63,8.1348381]
[1735197217457,2.5709,194.69,194.64,2.5714]
[1735197218461,2.5709,194.69,194.65,8.1348381]
[1735197218763,1.6315,194.73,194.66,2.5712]
[1735197218764,2.5707,194.7,194.66,2.5712]
[1735197219657,2.5707,194.7,194.65,8.1348381]
[1735197219863,2.5707,194.7,194.65,10.7061381]
[1735197221168,2.5709,194.69,194.65,10.7061381]
[1735197226673,8.1348381,194.75,194.67,8.1348381]
[1735197227370,8.1348381,194.73,194.67,8.1348381]
[1735197228967,2.5707,194.71,194.67,8.1348381]
[1735197230473,8.1348381,194.73,194.65,8.1348381]
[1735197230674,8.1348381,194.71,194.65,8.1348381]
[1735197230979,2.5715,194.65,194.62,8.1348381]
[1735197231281,2.5715,194.65,194.53,7.19392813]
[1735197231282,8.1348381,194.67,194.57,3.14]
[1735197231473,8.1348381,194.67,194.6,8.1348381]